bitfinex-derivatives/quotes_BNBF0:USTF0_20250331
["timestamp","ask_amount","ask_price","bid_price","bid_amount"]
[1743431832824,2.28762228,602.91,602.46,0.3169847]
[1743431833023,2.28756458,602.9,602.46,0.3169847]
[1743431833223,0.87983675,602.89,602.46,0.3169847]
[1743431833418,0.87983675,602.88,602.46,0.3169847]
[1743431833617,0.87983675,602.87,602.46,0.3169847]
[1743431833922,1.1463441,602.86,602.46,0.3169847]
[1743431834423,1.1463441,602.85,602.46,0.3169847]
[1743431835025,3.27280722,603.01,602.46,0.3169847]
[1743431835327,4.15276832,603.0,602.46,0.3169847]
[1743431835517,4.15276832,602.99,602.46,0.3169847]
[1743431835722,4.1532567,602.98,602.46,0.3169847]
[1743431835920,4.1532567,602.97,602.46,0.3169847]
[1743431836124,4.1534099,602.96,602.46,0.3169847]
[1743431836324,4.1534099,602.95,602.46,0.3169847]
[1743431836524,0.98942478,602.93,602.46,0.3169847]
[1743431836827,0.98942478,602.87,602.46,0.3169847]
[1743431837021,5.14283468,602.86,602.46,0.3169847]
[1743431837226,4.1534099,602.85,602.46,0.3169847]
[1743431837522,7.13447293,602.84,602.46,0.3169847]
[1743431837727,4.15356231,602.83,602.46,0.3169847]
[1743431838029,0.88004522,602.82,602.46,0.3169847]
[1743431838224,0.88004522,602.81,602.46,0.3169847]
[1743431838420,0.88004522,602.8,602.46,0.3169847]
[1743431838621,2.0265493,602.79,602.46,0.3169847]
[1743431838927,0.8800791,602.78,602.46,0.3169847]
[1743431839130,1.14650408,602.79,602.46,0.3169847]
[1743431839522,3.2732481,602.97,602.46,0.3169847]
[1743431839725,4.15328301,602.96,602.46,0.3169847]
[1743431839927,4.15328301,602.95,602.46,0.3169847]
[1743431840129,3.65562584,602.94,602.46,0.3169847]
[1743431840328,4.15326036,602.93,602.46,0.3169847]
[1743431840529,4.15326036,602.92,602.46,0.3169847]
[1743431840731,7.13418742,602.91,602.46,0.3169847]
[1743431840923,4.15326036,602.9,602.46,0.3169847]
[1743431841124,7.13418742,602.89,602.46,0.3169847]
[1743431841429,4.15363033,602.88,602.46,0.3169847]
[1743431841628,3.65594665,602.87,602.46,0.3169847]
[1743431841825,6.63766563,602.86,602.46,0.3169847]
[1743431842027,3.65673857,602.85,602.46,0.3169847]
[1743431842329,3.65673857,602.84,602.46,0.3169847]
[1743431842528,3.65673857,602.83,602.46,0.3169847]
[1743431842729,5.2697511,602.82,602.46,0.3169847]
[1743431842928,3.65708274,602.81,602.46,0.3169847]
[1743431843126,6.6380098,602.8,602.46,0.3169847]
[1743431843430,3.65751289,602.79,602.46,0.3169847]
[1743431843630,4.1552782,602.78,602.46,0.3169847]
[1743431843930,4.1552782,602.77,602.46,0.3169847]
[1743431844126,4.1552782,602.76,602.46,0.3169847]
[1743431844326,6.63843995,602.75,602.46,0.3169847]
[1743431844531,3.65751289,602.74,602.46,0.3169847]
[1743431844731,4.15531933,602.73,602.46,0.3169847]
[1743431844929,4.15531933,602.72,602.46,0.3169847]
[1743431845230,0.98998269,602.7,602.46,0.3169847]
[1743431845431,4.15531933,602.69,602.46,0.3169847]
[1743431845625,4.15531933,602.68,602.46,0.3169847]
[1743431845829,4.15531933,602.67,602.46,0.3169847]
[1743431846028,4.15531933,602.66,602.46,0.3169847]
[1743431846225,3.65751289,602.65,602.46,0.3169847]
[1743431846431,3.65751289,602.64,602.46,0.3169847]
[1743431846630,3.65751289,602.63,602.46,0.3169847]
[1743431846930,6.63843995,602.62,602.46,0.3169847]
[1743431847131,3.65806087,602.61,602.46,0.3169847]
[1743431847324,6.63898793,602.6,602.46,0.3169847]
[1743431847524,3.65806087,602.59,602.46,0.3169847]
[1743431847728,3.65806087,602.58,602.46,0.3169847]
[1743431847928,3.65806087,602.57,602.46,0.3169847]
[1743431848128,3.65806087,602.56,602.46,0.3169847]
[1743431848326,3.65806087,602.55,602.46,0.3169847]
[1743431848526,3.65806087,602.54,602.46,0.3169847]
[1743431848725,3.65806087,602.53,602.46,0.3169847]
[1743431848929,3.65739687,602.52,602.46,0.3169847]
[1743431849129,6.63832393,602.51,602.46,0.3169847]
[1743431849430,3.6571653,602.5,602.46,0.3169847]
[1743431849627,5.49158195,602.49,602.46,0.3169847]
[1743431849827,3.6571653,602.48,602.46,0.3169847]
[1743431850030,6.63809236,602.47,602.46,0.3169847]
[1743431851436,5.22903317,602.47,602.46,0.3169847]
[1743431851642,3.86158905,602.47,602.46,0.3169847]
[1743431851837,3.86054395,602.47,602.46,0.3169847]
[1743431852136,2.02611848,602.47,602.46,0.3169847]
[1743431852735,1.14651041,602.47,602.46,0.3169847]
[1743431852941,2.02600354,602.47,602.46,0.3169847]
[1743431854443,4.79883679,602.47,602.46,0.3169847]
[1743431854643,3.39164777,602.47,602.46,0.3169847]
[1743431854843,3.3913193,602.47,602.46,0.3169847]
[1743431855045,5.22573595,602.47,602.46,0.3169847]
[1743431855239,6.63261424,602.47,602.46,0.3169847]
[1743431856744,6.63128657,602.47,602.46,0.3169847]
[1743431858541,5.26596928,602.47,602.46,0.3169847]
[1743431858740,6.63000781,602.47,602.46,0.3169847]
[1743431858944,6.63000781,602.47,600.33,2.4715918]
[1743431859149,4.14713749,602.46,600.43,0.33309461]
[1743431859347,4.14713749,602.45,600.43,0.33309461]
[1743431859546,4.14713749,602.44,600.43,0.33309461]
[1743431859741,0.98822878,602.49,600.43,0.33309461]
[1743431859742,7.12806455,602.43,600.43,0.33309461]
[1743431859944,4.14713749,602.42,600.43,0.33309461]
[1743431860140,3.64908075,602.41,600.43,0.33309461]
[1743431860345,2.28504222,602.4,600.43,0.33309461]
[1743431860541,0.87886239,602.39,600.43,0.33309461]
[1743431860746,0.87886239,602.38,600.54,2.4715918]
[1743431861042,0.87886239,602.37,600.56,0.33302251]
[1743431861246,0.87886239,602.36,600.56,0.33302251]
[1743431861440,0.87886239,602.35,600.56,0.33302251]
[1743431861641,0.87886239,602.34,600.56,0.33302251]
[1743431861847,1.14651041,602.36,600.56,0.33302251]
[1743431862042,1.14651041,602.33,600.56,0.33302251]
[1743431862249,0.87771126,602.32,600.56,0.33302251]
[1743431862446,0.87771126,602.31,600.56,0.33302251]
[1743431862641,0.87771126,602.3,600.56,0.33302251]
[1743431862842,1.14651041,602.3,600.56,0.33302251]
[1743431863048,0.87749662,602.29,600.56,0.33302251]
[1743431863247,0.87750222,602.28,600.56,0.33302251]
[1743431863449,1.14651041,602.28,600.56,0.33302251]
[1743431864249,3.35539996,603.64,600.56,0.33302251]
[1743431864250,4.59439691,602.45,600.56,0.33302251]
[1743431864443,2.28066628,602.44,600.56,0.33302251]
[1743431864646,0.87703274,602.43,600.56,0.33302251]
[1743431864844,0.87703274,602.42,600.61,2.4715918]
[1743431865049,0.87703274,602.41,600.61,2.4715918]
[1743431865248,0.87703274,602.4,600.63,0.3329837]
[1743431865449,1.14233961,602.42,600.63,0.3329837]
[1743431865646,2.0192139,602.41,600.63,0.3329837]
[1743431865847,0.87687429,602.4,600.63,0.3329837]
[1743431866048,1.14233961,602.41,600.63,0.3329837]
[1743431866245,2.01921315,602.4,600.63,0.3329837]
[1743431866449,1.14233961,602.4,600.63,0.3329837]
[1743431866650,1.14233961,602.39,600.63,0.3329837]
[1743431866850,0.87679241,602.38,600.63,0.3329837]
[1743431867050,0.87679241,602.37,600.63,0.3329837]
[1743431867250,0.87681508,602.36,600.63,0.3329837]
[1743431867446,0.87681508,602.35,600.63,0.3329837]
[1743431867650,0.87681508,602.34,600.63,0.3329837]
[1743431867846,0.87681508,602.33,600.63,0.3329837]
[1743431868049,1.14233961,602.34,600.63,0.3329837]
[1743431868050,0.87681508,602.32,600.63,0.3329837]
[1743431868255,1.14233961,602.32,600.63,0.3329837]
[1743431868453,0.87667046,602.31,600.63,0.3329837]
[1743431868655,1.14233961,602.3,600.63,0.3329837]
[1743431869055,3.22949768,602.44,600.63,0.3329837]
[1743431869357,2.2792163,602.43,600.63,0.3329837]
[1743431869554,2.2792163,602.42,600.63,0.3329837]
[1743431869757,5.24757885,602.41,600.63,0.3329837]
[1743431869951,2.2792163,602.4,600.63,0.3329837]
[1743431870154,0.87654357,602.39,600.63,0.3329837]
[1743431870354,0.87635534,602.38,600.63,0.3329837]
[1743431870556,2.01789294,602.37,600.63,0.3329837]
[1743431870753,0.87635534,602.36,600.63,0.3329837]
[1743431870954,0.87635534,602.35,600.63,0.3329837]
[1743431871152,1.1415376,602.36,600.63,0.3329837]
[1743431871553,1.1415376,602.35,600.63,0.3329837]
[1743431872154,1.82611623,602.47,600.63,0.3329837]
[1743431872358,0.87601383,602.46,600.63,0.3329837]
[1743431872560,0.87601383,602.45,600.63,0.3329837]
[1743431872762,2.01708165,602.44,600.63,0.3329837]
[1743431873062,3.22760658,602.53,600.63,0.3329837]
[1743431873264,0.87593028,602.52,600.63,0.3329837]
[1743431873557,0.87593028,602.51,600.63,0.3329837]
[1743431873765,0.87593028,602.5,600.63,0.3329837]
[1743431873963,0.87593028,602.49,600.63,0.3329837]
[1743431874164,0.87593028,602.48,600.63,0.3329837]
[1743431874360,0.87593028,602.47,600.63,0.3329837]
[1743431874557,0.87593028,602.46,600.63,0.3329837]
[1743431874755,0.87587989,602.45,600.63,0.3329837]
[1743431874960,0.87587989,602.44,600.63,0.3329837]
[1743431875158,1.14090474,602.44,600.63,0.3329837]
[1743431876062,1.14090474,602.43,600.63,0.3329837]
[1743431876459,0.87574174,602.5,600.64,2.4715918]
[1743431876659,3.22730436,602.61,600.64,2.4715918]
[1743431876660,1.40118813,602.6,600.66,0.33296706]
[1743431876864,5.24371336,602.59,600.66,0.33296706]
[1743431877066,2.27691769,602.58,600.66,0.33296706]
[1743431877267,2.27691769,602.57,600.66,0.33296706]
[1743431877461,0.87572956,602.56,600.66,0.33296706]
[1743431877666,0.87572956,602.55,600.66,0.33296706]
[1743431877967,2.016409,602.54,601.06,2.4715918]
[1743431878167,0.87572956,602.53,601.08,0.33273441]
[1743431878361,0.87572956,602.52,601.08,0.33273441]
[1743431878560,0.28906175,602.63,601.08,0.33273441]
[1743431878561,2.016409,602.51,601.08,0.33273441]
[1743431878765,0.87572956,602.5,601.08,0.33273441]
[1743431878962,0.87572956,602.49,601.08,0.33273441]
[1743431879163,2.016409,602.48,601.08,0.33273441]
[1743431879366,1.14067944,602.48,601.08,0.33273441]
[1743431879767,1.14067944,602.47,601.08,0.33273441]
[1743431880367,3.22619081,602.61,601.08,0.33273441]
[1743431880564,0.87570416,602.6,601.08,0.33273441]
[1743431880763,1.82505081,602.61,601.08,0.33273441]
[1743431880764,0.87570416,602.59,601.08,2.80432621]
[1743431880964,1.82505081,602.61,601.08,2.80432621]
[1743431881270,1.1405399,602.58,601.08,2.80432621]
[1743431881471,1.1405399,602.6,601.08,2.80432621]
[1743431881970,0.87565098,602.69,601.08,2.80432621]
[1743431882170,0.87565098,602.68,601.08,2.80432621]
[1743431882366,2.01620582,602.67,601.08,0.33273441]
[1743431882567,1.14055484,602.67,601.08,0.33273441]
[1743431882767,1.14055484,602.66,601.08,0.33273441]
[1743431882967,1.14055484,602.65,601.08,0.33273441]
[1743431883370,0.87572415,602.64,601.08,0.33273441]
[1743431883573,2.01629034,602.63,601.08,0.33273441]
[1743431883771,1.14055484,602.63,601.08,0.33273441]
[1743431883973,3.22603472,602.75,601.08,0.33273441]
[1743431884167,0.87570867,602.74,601.08,0.33273441]
[1743431884372,0.87570867,602.73,601.15,2.4715918]
[1743431884569,0.87570867,602.72,601.15,2.4715918]
[1743431884868,2.27693345,602.71,601.15,2.4715918]
[1743431885175,2.27693345,602.7,601.17,0.33268459]
[1743431885373,2.27785547,602.69,601.17,0.33268459]
[1743431885564,2.27785547,602.68,601.17,0.33268459]
[1743431885770,2.27785547,602.67,601.17,0.33268459]
[1743431885966,2.27785547,602.66,601.17,0.33268459]
[1743431886170,5.24362769,602.65,601.17,0.33268459]
[1743431886370,2.27785547,602.64,601.17,0.33268459]
[1743431886674,2.77581293,602.63,601.2,2.4715918]
[1743431886874,2.27785547,602.62,601.22,0.33265693]
[1743431887069,5.24362769,602.61,601.22,0.33265693]
[1743431887271,2.27785547,602.6,601.22,0.33265693]
[1743431887469,2.27785547,602.59,601.22,0.33265693]
[1743431887772,2.27785547,602.58,601.22,0.33265693]
[1743431888073,3.63891983,602.57,601.22,0.33265693]
[1743431888276,3.63891983,602.56,601.22,0.33265693]
[1743431888475,3.63891983,602.55,601.22,0.33265693]
[1743431888671,3.63891983,602.54,601.22,0.33265693]
[1743431888870,6.60469205,602.53,601.22,0.33265693]
[1743431889070,3.63891983,602.52,601.22,0.33265693]
[1743431889275,2.27785547,602.51,601.22,0.33265693]
[1743431889571,5.24362769,602.5,601.22,0.33265693]
[1743431889770,2.27785547,602.49,601.22,0.33265693]
[1743431889975,2.27785547,602.48,601.22,0.33265693]
[1743431890171,2.27785547,602.47,601.22,0.33265693]
[1743431890376,2.27785547,602.46,601.22,0.33265693]
[1743431890575,3.63971153,602.45,601.22,0.33265693]
[1743431890776,6.60548375,602.44,601.22,0.33265693]
[1743431891071,1.36185606,602.43,601.22,0.33265693]
[1743431891272,6.60880575,602.42,601.22,0.33265693]
[1743431891468,4.14116813,602.41,601.22,0.33265693]
[1743431891670,3.64303353,602.4,601.22,0.33265693]
[1743431891870,3.64303353,602.39,601.22,0.33265693]
[1743431892071,3.64303353,602.38,601.22,0.33265693]
[1743431892276,3.64303353,602.37,601.22,0.33265693]
[1743431892576,4.14116813,602.36,601.22,0.33265693]
[1743431892875,4.14116813,602.35,601.22,0.33265693]
[1743431893071,4.14384108,602.34,601.22,0.33265693]
[1743431893277,4.14384108,602.33,601.22,0.33265693]
[1743431893478,4.14393427,602.32,601.22,0.33265693]
[1743431893777,2.96577222,602.33,601.22,0.33265693]
[1743431893778,4.14393427,602.31,601.22,0.33265693]
[1743431893973,7.10970649,602.3,601.22,0.33265693]
[1743431894174,4.14393427,602.29,601.22,0.33265693]
[1743431894374,2.28251599,602.28,601.22,0.33265693]
[1743431894576,2.28251599,602.27,601.22,0.33265693]
[1743431894772,2.28251599,602.26,601.22,0.33265693]
[1743431894975,2.28251599,602.25,601.22,0.33265693]
[1743431895177,0.87789076,602.24,601.22,0.33265693]
[1743431895373,2.01861217,602.23,601.22,0.33265693]
[1743431895672,1.14072141,602.23,601.22,0.33265693]
[1743431895979,2.76843192,602.36,601.22,0.33265693]
[1743431896274,5.2520147,602.35,601.22,0.33265693]
[1743431896471,2.2831694,602.34,601.22,0.33265693]
[1743431896673,0.87811276,602.33,601.22,0.33265693]
[1743431896980,0.87820644,602.32,601.22,0.33265693]
[1743431897279,0.87820644,602.31,601.22,0.33265693]
[1743431897479,0.87820644,602.3,601.22,0.33265693]
[1743431897679,1.14379449,602.3,601.22,0.33265693]
[1743431898079,0.87810471,602.4,601.22,0.33265693]
[1743431898282,1.82505081,602.41,601.22,0.33265693]
[1743431898580,1.14382017,602.39,601.22,0.33265693]
[1743431898976,5.09269798,602.57,601.22,0.33265693]
[1743431899176,4.14607914,602.56,601.22,0.33265693]
[1743431899374,3.64800401,602.55,601.22,0.33265693]
[1743431899580,2.28398227,602.54,601.22,0.33265693]
[1743431899880,3.84828774,602.53,601.22,0.33265693]
[1743431900080,2.24312132,602.52,601.22,0.33265693]
[1743431900280,3.84828774,602.51,601.22,0.33265693]
[1743431900475,2.24312132,602.5,601.22,0.33265693]
[1743431900676,0.87939043,602.49,601.22,0.33265693]
[1743431900880,0.87939043,602.48,601.22,0.33265693]
[1743431901075,0.87939043,602.47,601.22,0.33265693]
[1743431901279,2.02419539,602.46,601.22,0.33265693]
[1743431901577,0.87939043,602.45,601.22,0.33265693]
[1743431901775,2.02419539,602.44,601.22,0.33265693]
[1743431901980,0.87939043,602.43,601.22,0.33265693]
[1743431902283,2.02419539,602.42,601.22,0.33265693]
[1743431902480,0.87939043,602.41,601.22,0.33265693]
[1743431902681,2.02508772,602.4,601.22,0.33265693]
[1743431902881,0.88028276,602.39,601.22,0.33265693]
[1743431903183,2.02508772,602.38,601.22,0.33265693]
[1743431903384,0.88028276,602.37,601.22,0.33265693]
[1743431903582,3.39262998,602.36,601.22,0.33265693]
[1743431903778,0.88028276,602.35,601.22,0.33265693]
[1743431903978,0.88028276,602.34,601.22,0.33265693]
[1743431904178,0.88028276,602.33,601.22,0.33265693]
[1743431904383,3.65797316,602.32,601.22,0.33265693]
[1743431904578,3.65797316,602.31,601.22,0.33265693]
[1743431904782,3.65797316,602.3,601.22,0.33265693]
[1743431904982,0.88028276,602.29,601.22,0.33265693]
[1743431905181,1.14480496,602.29,601.22,0.33265693]
[1743431905583,3.27566707,602.52,601.22,0.33265693]
[1743431905783,7.14036326,602.51,601.22,0.33265693]
[1743431905984,7.14036326,602.5,601.22,0.33265693]
[1743431906179,4.15669346,602.49,601.22,0.33265693]
[1743431906383,3.6586684,602.48,601.22,0.33265693]
[1743431906582,3.6586684,602.47,601.22,0.33265693]
[1743431906782,6.6423382,602.46,601.22,0.33265693]
[1743431907084,6.6423382,602.45,601.22,0.33265693]
[1743431907386,6.6423382,602.44,601.22,0.33265693]
[1743431907678,6.6423382,602.43,601.22,0.33265693]
[1743431907883,2.9836698,602.42,601.22,0.33265693]
[1743431908078,6.64294113,602.41,601.22,0.33265693]
[1743431908278,6.64294113,602.4,601.22,0.33265693]
[1743431908478,6.64297317,602.39,601.22,0.33265693]
[1743431908682,6.64297317,602.38,601.22,0.33265693]
[1743431908978,5.23308402,602.37,601.22,0.33265693]
[1743431909182,0.88118072,602.36,601.22,0.33265693]
[1743431909378,0.88118072,602.35,601.22,0.33265693]
[1743431909683,2.9836698,602.36,601.22,0.33265693]
[1743431909884,3.27635688,602.57,601.22,0.33265693]
[1743431910084,7.14186789,602.56,601.22,0.33265693]
[1743431910285,4.15755875,602.55,601.22,0.33265693]
[1743431910579,0.88120187,602.54,601.22,0.33265693]
[1743431910783,0.88120187,602.53,601.22,0.33265693]
[1743431910979,1.14781121,602.54,601.22,0.33265693]
[1743431911384,1.14781121,602.52,601.22,0.33265693]
[1743431912281,0.88075487,602.69,601.22,0.33265693]
[1743431912282,1.14781121,602.69,601.22,0.33265693]
[1743431912684,1.14781121,602.68,601.22,0.33265693]
[1743431913081,2.77564147,602.79,601.22,0.33265693]
[1743431913387,0.88036324,602.78,601.22,0.33265693]
[1743431913686,0.28894655,602.89,601.22,0.33265693]
[1743431913687,3.86139068,602.77,601.22,0.33265693]
[1743431913882,0.88036324,602.76,601.22,0.33265693]
[1743431914080,0.88036324,602.75,601.22,0.33265693]
[1743431914284,0.88036324,602.74,601.22,0.33265693]
[1743431914491,0.88036324,602.73,601.22,0.33265693]
[1743431914684,1.14628271,602.73,601.22,0.33265693]
[1743431915088,1.14628271,602.72,601.22,0.33265693]
[1743431915683,3.2414446,602.81,601.22,0.33265693]
[1743431915885,2.28746952,602.8,601.22,0.33265693]
[1743431916082,3.85833457,602.79,601.22,0.33265693]
[1743431916390,0.8794312,602.78,601.22,0.33265693]
[1743431916583,0.8794312,602.77,601.22,0.33265693]
[1743431916781,0.8794312,602.76,601.22,0.33265693]
[1743431916988,2.02492829,602.75,601.22,0.33265693]
[1743431917186,0.87917378,602.74,601.22,0.33265693]
[1743431917381,1.14549709,602.75,601.22,0.33265693]
[1743431917382,0.87917378,602.73,601.22,0.33265693]
[1743431917587,0.87917378,602.72,601.22,0.33265693]
[1743431917787,2.02467087,602.71,601.22,0.33265693]
[1743431917982,0.87917378,602.7,601.22,0.33265693]
[1743431918186,1.14549709,602.71,601.22,0.33265693]
[1743431918389,0.87873837,602.7,601.22,0.33265693]
[1743431918591,1.14549709,602.7,601.22,0.33265693]
[1743431919187,2.77118329,602.81,601.22,0.33265693]
[1743431919188,1.40597568,602.8,601.22,0.33265693]
[1743431919383,2.28427745,602.79,601.22,0.33265693]
[1743431919690,5.25998806,602.78,601.22,0.33265693]
[1743431919891,2.28427745,602.77,601.22,0.33265693]
[1743431920192,0.87856825,602.76,601.32,2.4715918]
[1743431920392,0.87856825,602.75,601.34,0.33259054]
[1743431920584,0.87856825,602.74,601.34,0.33259054]
[1743431920786,2.97571061,602.77,601.34,0.33259054]
[1743431920992,1.14436561,602.73,601.34,0.33259054]
[1743431921788,4.59915172,602.87,601.34,0.33259054]
[1743431921993,0.87815948,602.86,601.34,0.33259054]
[1743431922192,0.87815948,602.85,601.34,0.33259054]
[1743431922387,0.87815948,602.84,601.34,0.33259054]
[1743431922593,2.02189095,602.83,601.34,0.33259054]
[1743431922794,1.14373147,602.83,601.34,0.33259054]
[1743431923492,1.14373147,602.82,601.34,0.33259054]
[1743431923893,1.14373147,602.81,601.34,0.33259054]
[1743431924595,2.02099657,602.8,601.34,0.33259054]
[1743431924795,0.87733186,602.79,601.34,0.33259054]
[1743431924989,0.87733186,602.78,601.34,0.33259054]
[1743431925189,1.14373147,602.77,601.34,0.33259054]
[1743431925796,1.82833856,602.88,601.34,0.33259054]
[1743431926092,0.87703281,602.87,601.34,0.33259054]
[1743431926296,0.87703281,602.86,601.34,0.33259054]
[1743431926496,0.87703281,602.85,601.34,0.33259054]
[1743431926699,0.87703281,602.84,601.34,0.33259054]
[1743431926995,0.87703281,602.83,601.34,0.33259054]
[1743431927195,0.87679124,602.82,601.34,0.33259054]
[1743431927395,1.14236691,602.83,601.34,0.33259054]
[1743431927595,0.8765957,602.82,601.34,0.33259054]
[1743431927795,0.87662417,602.81,601.34,0.33259054]
[1743431928096,0.87662992,602.8,601.34,0.33259054]
[1743431928295,0.49768375,603.0,601.34,0.33259054]
[1743431928296,3.22952757,602.87,601.34,0.33259054]
[1743431928496,0.87650675,602.86,601.34,0.33259054]
[1743431928691,1.82688127,602.87,601.34,0.33259054]
[1743431928890,1.14157249,602.85,601.34,0.33259054]
[1743431929295,3.22920984,602.97,601.34,0.33259054]
[1743431929506,0.87613012,602.96,601.34,0.33259054]
[1743431929702,0.87613012,602.95,601.34,0.33259054]
[1743431929906,0.87613012,602.94,601.34,0.33259054]
[1743431930203,0.87613012,602.93,601.34,0.33259054]
[1743431930407,0.87613012,602.92,601.34,0.33259054]
[1743431930609,1.14118245,602.93,601.34,0.33259054]
[1743431930804,1.14118245,602.91,601.34,0.33259054]
[1743431931504,1.40088471,603.05,601.34,0.33259054]
[1743431931710,2.27642115,603.04,601.34,0.33259054]
[1743431931908,0.87553644,603.03,601.34,0.33259054]
[1743431932104,2.96506879,603.04,601.34,0.33259054]
[1743431932105,0.87553644,603.02,601.34,0.33259054]
[1743431932306,2.96506879,603.04,601.34,0.33259054]
[1743431932505,0.87512131,603.03,601.34,0.33259054]
[1743431932704,1.14041107,603.03,601.34,0.33259054]
[1743431933210,0.28879189,603.23,601.34,0.33259054]
[1743431933211,1.40018783,603.09,601.34,0.33259054]
[1743431933509,5.23751535,603.08,601.34,0.33259054]
[1743431933710,0.87484209,603.07,601.34,0.33259054]
[1743431933911,2.01425956,603.06,601.34,0.33259054]
[1743431934212,0.87484209,603.05,601.34,0.33259054]
[1743431934412,2.27446709,603.04,601.34,0.33259054]
[1743431934711,2.27392485,603.03,601.34,0.33259054]
[1743431934909,2.27392485,603.02,601.34,0.33259054]
[1743431935107,5.23597373,603.01,601.34,0.33259054]
[1743431935311,4.12971127,603.0,601.34,0.33259054]
[1743431935512,2.27392485,602.99,601.34,0.33259054]
[1743431935714,2.27392485,602.98,601.34,0.33259054]
[1743431935916,2.27392485,602.97,601.34,0.33259054]
[1743431936116,2.27392485,602.96,601.34,0.33259054]
[1743431936416,2.27392485,602.95,601.34,0.33259054]
[1743431936608,5.23597373,602.94,601.34,0.33259054]
[1743431936813,2.27392485,602.93,601.34,0.33259054]
[1743431937009,2.01400395,602.92,601.34,0.33259054]
[1743431937210,0.87458648,602.91,601.34,0.33259054]
[1743431937410,0.87458648,602.9,601.34,0.33259054]
[1743431937616,0.87458648,602.89,601.34,0.33259054]
[1743431937918,1.13941747,602.9,601.34,0.33259054]
[1743431938110,1.82217911,602.97,601.34,0.33259054]
[1743431938315,0.87426453,602.96,601.34,0.33259054]
[1743431938510,1.82217911,602.97,601.34,0.33259054]
[1743431938715,1.39882325,603.13,601.34,0.33259054]
[1743431938917,2.27283957,603.12,601.34,0.33259054]
[1743431939109,2.27283957,603.11,601.34,0.33259054]
[1743431939311,2.27283957,603.1,601.34,0.33259054]
[1743431939513,5.23344032,603.09,601.34,0.33259054]
[1743431939714,0.28880028,603.19,601.34,0.33259054]
[1743431939715,5.23344032,603.08,601.34,0.33259054]
[1743431939917,2.27283957,603.07,601.34,0.33259054]
[1743431940112,5.23344032,603.06,601.34,0.33259054]
[1743431940315,2.27203882,603.05,601.34,0.33259054]
[1743431940617,0.87376328,603.04,601.34,0.33259054]
[1743431940818,0.87376328,603.03,601.34,0.33259054]
[1743431941017,0.87376328,603.02,601.34,0.33259054]
[1743431941213,1.13842164,603.03,601.34,0.33259054]
[1743431941416,2.0121657,603.02,601.34,0.33259054]
[1743431941615,1.13842164,603.02,601.34,0.33259054]
[1743431941817,1.13842164,603.02,601.34,2.80418234]
[1743431942017,2.01216394,603.01,601.34,2.80418234]
[1743431942213,1.13842164,603.01,601.34,2.80418234]
[1743431942619,1.39799049,603.09,601.34,2.80418234]
[1743431942818,2.27146436,603.08,601.34,2.80418234]
[1743431943019,2.27146436,603.07,601.34,2.80418234]
[1743431943320,0.87347387,603.06,601.36,2.4715918]
[1743431943520,0.87347387,603.05,601.38,0.33256842]
[1743431943713,0.87347387,603.04,601.38,0.33256842]
[1743431943914,0.87347387,603.03,601.38,0.33256842]
[1743431944119,2.01120047,603.02,601.38,0.33256842]
[1743431944320,0.87347387,603.01,601.38,0.33256842]
[1743431944622,0.87347387,603.0,601.38,0.33256842]
[1743431944821,0.87347387,602.99,601.4,2.4715918]
[1743431945021,0.87347387,602.98,601.42,0.3325463]
[1743431945216,0.87347387,602.97,601.42,0.3325463]
[1743431945422,0.87347387,602.96,601.42,0.3325463]
[1743431945616,0.87347387,602.95,601.42,0.3325463]
[1743431945922,3.21595645,603.1,601.42,0.3325463]
[1743431946128,2.26966073,603.09,601.42,0.3325463]
[1743431946319,2.26966073,603.08,601.42,0.3325463]
[1743431946523,2.26966073,603.07,601.42,0.3325463]
[1743431946720,4.08890229,603.06,601.42,0.3325463]
[1743431946923,2.26966073,603.05,601.42,0.3325463]
[1743431947123,2.26966073,603.04,601.42,0.3325463]
[1743431947317,2.26966073,603.03,601.42,0.3325463]
[1743431947518,2.7672568,603.02,601.42,0.3325463]
[1743431947722,2.95613078,603.03,601.42,0.3325463]
[1743431947924,2.26950899,603.02,601.42,0.3325463]
[1743431948120,2.26950899,603.01,601.42,0.3325463]
[1743431948320,5.72330024,603.0,601.42,0.3325463]
[1743431948520,4.12265443,602.99,601.42,0.3325463]
[1743431948722,4.12265443,602.98,601.42,0.3325463]
[1743431948926,4.12265443,602.97,601.42,0.3325463]
[1743431949123,2.76716946,602.96,601.42,0.3325463]
[1743431949426,2.26950899,602.95,601.42,0.3325463]
[1743431949618,3.40639821,602.94,601.42,0.3325463]
[1743431949824,2.26950899,602.93,601.42,0.3325463]
[1743431950023,2.26950899,602.92,601.42,0.3325463]
[1743431950224,5.22563977,602.91,601.42,0.3325463]
[1743431950422,2.26950899,602.9,601.42,0.3325463]
[1743431950627,2.26950899,602.89,601.42,0.3325463]
[1743431950824,2.26950899,602.88,601.42,0.3325463]
[1743431951024,2.26950899,602.87,601.42,0.3325463]
[1743431951226,2.27022903,602.86,601.42,0.3325463]
[1743431951428,2.61920786,603.81,601.42,0.3325463]
[1743431951429,2.01005423,602.85,601.42,0.3325463]
[1743431951626,0.87316501,602.84,601.42,0.3325463]
[1743431951822,2.01005423,602.83,601.42,0.3325463]
[1743431952127,1.13688922,602.83,601.42,0.3325463]
[1743431952724,1.39718657,603.01,601.42,0.3325463]
[1743431952923,2.27062945,603.0,601.42,0.3325463]